[Event "Czech Championship U20 Open 2023"]
[Site "Jaromerice nad Rokytnou"]
[Date "2023.03.18"]
[Round "11.2"]
[White "Frank, Adam"]
[Black "Jun, Rudolf"]
[Result "1/2-1/2"]
[ECO "B33"]
[WhiteElo "2391"]
[BlackElo "2152"]
[Annotator "TA"]
[PlyCount "61"]
[EventDate "2023.03.10"]
[EventType "tourn"]
[EventCountry "CZE"]
[SourceTitle "playchess.com"]
[Source "ChessBase"]
[SourceQuality "1"]
[TimeControl "40/5400+30:1800+30"]

{[%evp 24,61,22,21,12,19,22,12,11,16,21,18,25,16,8,3,20,13,25,0,20,34,26,40,31,18,21,21,27,14,20,0,100,-35,0,0,0,0,0,-293]} 1. e4 {[%emt 0:00:02]} c5 {[%emt 0:00:34]} 2. Nf3 {[%emt 0:00:05]} Nc6 {[%emt 0:00:33]} 3. d4 {[%emt 0:00:05]} cxd4 {[%emt 0:00:13]} 4. Nxd4 {[%emt 0:00:05]} Nf6 {[%emt 0:00:10]} 5. Nc3 {[%emt 0:00:03]} e5 {[%emt 0:00:06]} 6. Ndb5 {[%emt 0:00:03]} d6 {[%emt 0:00:06]} 7. Bg5 {[%emt 0:00:04]} a6 {[%emt 0:00:05]} 8. Na3 {[%emt 0:00:07]} b5 {[%emt 0:00:09]} 9. Nd5 {[%emt 0:00:04]} Be7 {[%emt 0:00:04]} 10. Bxf6 {[%emt 0:00:03]} Bxf6 {[%emt 0:00:08]} 11. c3 {[%emt 0:00:03]} Bg5 {[%emt 0:01:17]} 12. Nc2 {[%emt 0:00:04]} Rb8 {[%emt 0:02:11]} 13. a4 {[%emt 0:00:05]} bxa4 {[%emt 0:01:15] B33: Sicilian: Pelikan and Sveshnikov Variations.} 14. Ncb4 {[%emt 0:00:05]} Nxb4 {[%emt 0:03:46]} 15. cxb4 {[%emt 0:00:09]} Bd7 {[%emt 0:01:59]} 16. Bxa6 {[%emt 0:00:05][%cal Ob4b5]} O-O {[%emt 0:01:11]} 17. O-O {[%emt 0:00:05] 17.0-0 has become a bit dusty these days.} Bc6 {[%emt 0:01:49]} 18. Rxa4 {[%emt 0:08:06]} Bxa4 {[%emt 0:03:23]} 19. Qxa4 {[%emt 0:00:14]} f5 {[%emt 0:05:35] Black is weak on the light squares} 20. exf5 Rxf5 {[%emt 0:06:46]} 21. Bd3 {[%emt 0:01:00]} Rf7 {[%emt 0:08:23]} 22. b5 {[%emt 0:00:54][%mdl 1024] [#] White has compensation.} Kh8 $146 {[%emt 0:05:40]} ({Predecessor:} 22... g6 23. Ra1 Qd7 24. h4 Bd8 25. Qb4 Qe6 26. Bc4 Kh8 27. g3 Qf5 28. Qe1 Rfb7 {½-½ Borisovs,L (2170)-Zubac,M (2466) FICGS W-ch final email 2008 (1)}) 23. Qg4 g6 {Dodges Qh5} 24. g3 {[%emt 0:06:33]} Bh6 {[%emt 0:06:58]} 25. b6 {[%emt 0:06:49]} Rxb6 {[%emt 0:15:02]} 26. Nxb6 {[%emt 0:17:08]} Qxb6 {[%emt 0:00:13]} 27. Bxg6 {[%emt 0:05:09]} Rg7 {[%emt 0:16:49] [#]} (27... hxg6 $11 {remains equal.} 28. Qxg6 Rh7) 28. Ra1 $1 {[%emt 0:00:11]} hxg6 {[%emt 0:01:47]} (28... Rxg6 $2 29. Ra8+ Kg7 30. Qd7+ Kf6 31. Re8 $18) (28... Qc6 29. Qe4) 29. Ra8+ $1 {[%emt 0:01:25] The position is equal.} Rg8 $2 {[%emt 0:01:42][%mdl 8192]} (29... Kh7 $11 30. Qc8 g5) 30. Qxg6 $19 {[%emt 0:00:05][%csl Gg6][%cal Ra8g8]} Rxa8 {[%emt 0:00:45]} 31. Qxh6+ {[%emt 0:00:04][%mdl 32768] Weighted Error Value: White=0.13 (very precise) /Black=0.15 (very precise) . An unexpected result.} 1/2-1/2

[Event "Czech Championship U20 Open 2023"]
[Site "Jaromerice nad Rokytnou"]
[Date "2023.03.18"]
[Round "11.3"]
[White "Mica, Marek"]
[Black "Hrbek, Stepan"]
[Result "1-0"]
[ECO "A37"]
[WhiteElo "2248"]
[BlackElo "2340"]
[Annotator "TA"]
[PlyCount "83"]
[EventDate "2023.03.10"]
[EventType "tourn"]
[EventCountry "CZE"]
[SourceTitle "playchess.com"]
[Source "ChessBase"]
[SourceQuality "1"]
[TimeControl "40/5400+30:1800+30"]

{[%evp 16,83,5,12,27,16,178,168,162,161,164,156,375,121,224,230,237,202,226,67,67,67,69,72,80,83,51,52,150,183,506,488,523,491,598,606,595,591,581,569,537,427,449,405,401,322,476,426,769,749,782,693,675,660,725,703,675,623,12798,6720,6407,6041,5835,2593,12834,12803,29987,860,803,790]} 1. c4 {[%emt 0:00:04]} c5 {[%emt 0:02:14]} 2. Nf3 {[%emt 0:00:35]} Nc6 {[%emt 0:00:18]} 3. g3 {[%emt 0:01:18]} g6 {[%emt 0:01:55]} 4. Bg2 {[%emt 0:00:33]} Bg7 {[%emt 0:00:29]} 5. Nc3 {[%emt 0:00:29]} e6 {[%emt 0:00:58]} 6. d4 {[%emt 0:05:50]} cxd4 {[%emt 0:03:26]} 7. Nb5 {[%emt 0:00:07]} d5 {[%emt 0:00:02]} 8. cxd5 {[%emt 0:01:53]} Qa5+ {[%emt 0:00:27]} 9. Nd2 {[%emt 0:03:36]} Qxb5 {[%emt 0:00:44] A37: Symmetrical English vs ...g6: 4 Bg2 Bg7 5 Nf3.} 10. dxc6 {[%emt 0:03:53]} Nf6 $2 {[%emt 0:11:12]} (10... Ne7 $11 {and Black has nothing to worry.}) 11. a4 $1 $18 {[%emt 0:02:58]} Qa6 {[%emt 0:05:23] White is clearly better.} 12. b4 $1 {[%emt 0:09:53] b5 would be deadly.} b5 {[%emt 0:20:22]} (12... bxc6 $2 13. b5 cxb5 14. Bxa8 $18) 13. Bb2 {[%emt 0:07:24] [#]} e5 $146 {[%emt 0:11:19]} (13... Nd5 $16) ({Predecessor:} 13... Nd5 14. Bxd5 exd5 15. O-O Qxc6 16. Nf3 bxa4 17. Bxd4 f6 18. Qxa4 Qxa4 19. Rxa4 O-O {1-0 Zaragatski,I (2472)-Maenhout,T (2344) BEL-chT 1415 2014 (11.5)}) 14. Nb3 $2 {[%emt 0:23:49]} (14. c7 $18 Bb7 15. axb5 Qxa1 16. Qxa1 Bxg2 17. Rg1) 14... Qb6 {[%emt 0:00:15] [#]} (14... O-O $16 {was necessary.}) 15. Nxd4 $1 {[%emt 0:12:27][%mdl 512]} bxa4 {[%emt 0:09:50] [#]} 16. Qxa4 {[%emt 0:00:18] Hoping for c7+.} exd4 {[%emt 0:01:06] [#]} 17. c7+ $2 {[%emt 0:00:13]} (17. b5 $1 $18) 17... Bd7 $14 {[%emt 0:00:01]} 18. Bxa8 {[%emt 0:01:26]} O-O {[%emt 0:00:13]} 19. Qa5 {[%emt 0:14:05]} (19. Qxa7 $2 {is the wrong capture.} Qxb4+ 20. Kf1 Qxb2 $19) 19... Qxa5 {[%emt 0:03:00]} 20. Rxa5 {[%emt 0:00:05]} Rxa8 {[%emt 0:00:07]} 21. O-O {[%emt 0:00:31]} ({Don't do} 21. Bxd4 Rc8 $16) 21... Be6 {[%emt 0:08:11] Black is now going downhill.} (21... Rc8 $1 $14) 22. Rc1 $16 {[%emt 0:02:23][%mdl 1024] White has strong compensation. White is more active.} Ne4 $2 {[%emt 0:01:01]} (22... Rc8) 23. b5 $18 {[%emt 0:01:33] Black must now prevent b6.} Nd6 {[%emt 0:02:15]} (23... Nc3 $2 24. Bxc3 Rc8 25. Bd2) 24. b6 {[%emt 0:00:56] Threatens to win with Rc6.} a6 {[%emt 0:00:01]} 25. Ba3 {[%emt 0:02:04]} Nb7 {[%emt 0:03:01] [#]} 26. Rxa6 {[%emt 0:00:12][%mdl 576] Deflection, Promotion} Rc8 {[%emt 0:00:43]} 27. Bb4 {[%emt 0:01:09]} d3 {[%emt 0:04:19]} 28. exd3 {[%emt 0:00:31]} Bb2 {[%emt 0:00:40]} 29. Rc2 {[%emt 0:01:11]} Bd4 {[%emt 0:03:20]} 30. Bc3 {[%emt 0:00:42]} Bc5 {[%emt 0:00:11]} (30... Bxb6 {might work better.} 31. Rxb6 Rxc7) 31. Bf6 {[%emt 0:00:16] Strongly threatening Ra7.} Bd6 {[%emt 0:03:49]} (31... Kf8 $142 32. Ra7 Bd5 33. Rxb7 {[%mdl 64] Remove Defender} Bxb7) 32. Rc1 {[%emt 0:01:00]} Kf8 {[%emt 0:00:11]} 33. Rca1 {[%emt 0:00:33]} Ke8 {[%emt 0:00:07]} 34. Ra7 {[%emt 0:00:31]} Bd5 {[%emt 0:00:09]} 35. Ra8 {[%emt 0:00:26]} Be6 {[%emt 0:00:07]} 36. R1a7 {[%emt 0:01:04][%cal Oa7b7]} Nc5 {[%emt 0:02:25]} 37. d4 {[%emt 0:00:37]} Nb7 {[%emt 0:00:20] [#]} 38. Rxb7 $1 {[%emt 0:01:33] White threatens Rba7 and mate.} Rxa8 {[%emt 0:00:07]} 39. Ra7 {[%emt 0:00:05]} Rc8 {[%emt 0:01:49]} 40. b7 {[%emt 0:00:24]} Kd7 {[%emt 0:00:09]} 41. bxc8=Q+ {[%emt 0:30:51]} (41. b8=Q $142 Bc4 42. Bd8 Bd5 43. Qb5+ Bc6 44. Qc4 Be4 45. Qxf7+ Kc6 46. Qe6) 41... Kxc8 {[%emt 0:30:07]} 42. Be5 {[%emt 0:00:09] Artfully played by Mica.   Weighted Error Value: White=0.38/Black=0.79} 1-0

[Event "Czech Championship U20 Open 2023"]
[Site "Jaromerice nad Rokytnou"]
[Date "2023.03.18"]
[Round "11.4"]
[White "Gnojek, Petr"]
[Black "Ocelak, Jakub"]
[Result "1-0"]
[ECO "D35"]
[WhiteElo "2313"]
[BlackElo "2190"]
[Annotator "TA"]
[PlyCount "77"]
[EventDate "2023.03.10"]
[EventType "tourn"]
[EventCountry "CZE"]
[SourceTitle "playchess.com"]
[Source "ChessBase"]
[SourceQuality "1"]
[TimeControl "40/5400+30:1800+30"]

{[%evp 13,77,9,16,8,10,16,18,21,28,22,22,16,35,-7,6,15,18,13,15,13,46,54,53,-17,-6,-22,-12,-54,-60,-60,-50,-57,0,-8,0,-6,112,98,107,131,184,185,179,172,658,690,688,673,752,471,478,478,436,468,445,437,642,635,657,628,1350,1318,1293,1221,2261,2097]} 1. d4 {[%emt 0:00:03]} Nf6 {[%emt 0:00:20]} 2. c4 {[%emt 0:00:10]} e6 {[%emt 0:00:06]} 3. Nc3 {[%emt 0:01:33]} d5 {[%emt 0:00:02]} 4. cxd5 {[%emt 0:00:18]} exd5 {[%emt 0:00:02]} 5. Bg5 {[%emt 0:00:05]} c6 {[%emt 0:00:07]} 6. e3 {[%emt 0:00:07]} Bd6 {[%emt 0:00:10]} 7. Bd3 {[%emt 0:00:59]} O-O {[%emt 0:00:07]} 8. Qc2 {[%emt 0:00:57][%cal Od3h7] next Bxh7+! is good for White. D35: Queen's Gambit Declined: Exchange Variation.} h6 {[%emt 0:00:05]} 9. Bh4 {[%emt 0:00:05]} a5 {[%emt 0:00:03]} 10. Nge2 {[%emt 0:08:37] The position is equal.} Na6 {[%emt 0:00:06]} 11. a3 {[%emt 0:00:11] Against Nb4} Nc7 {[%emt 0:00:01]} 12. h3 {[%emt 0:06:07]} Ne6 {[%emt 0:00:05]} 13. f4 {[%emt 0:04:11]} Re8 {[%emt 0:05:03]} 14. O-O {[%emt 0:02:01]} Nf8 {[%emt 0:16:44] [#]} 15. Rf3 $146 {[%emt 0:00:39]} ({Predecessor:} 15. e4 dxe4 16. Nxe4 Be7 17. Nxf6+ Bxf6 18. Bf2 Ne6 19. Rad1 Nc7 20. Nc3 Nd5 21. Nxd5 Qxd5 {1-0 Sjugirov,S (2663)-Abdrlauf,E (2338) Titled Tuesday intern op 18th May blitz 2021 (6)}) 15... Be7 {[%emt 0:02:08]} 16. Raf1 {[%emt 0:00:24]} Ne4 {[%emt 0:12:32] Hoping for ...Nxc3.} 17. Bxe7 {[%emt 0:05:44]} Qxe7 {[%emt 0:00:12]} 18. f5 {[%emt 0:08:23]} (18. Bxe4 $14 dxe4 19. R3f2) 18... Nf6 $11 {[%emt 0:03:18]} 19. Nf4 {[%emt 0:13:00]} N8h7 {[%emt 0:07:09]} 20. Qe2 {[%emt 0:01:27]} b5 {[%emt 0:09:15]} 21. Rg3 {[%emt 0:04:51]} Qd6 {[%emt 0:04:59]} 22. h4 Bd7 {[%emt 0:05:33]} (22... b4 $15 23. Na4 bxa3) 23. Rh3 {[%emt 0:05:25]} Re7 {[%emt 0:06:35]} 24. g4 {[%emt 0:04:48][%cal Bg2g4,Bg4g5][%mdl 32]} c5 {[%emt 0:03:27] [#]} (24... g5 $1 $11 25. fxg6 fxg6 26. Nxg6 Rg7) 25. Qg2 $1 $16 {[%emt 0:03:05] aiming for g5.} (25. Bxb5 $2 cxd4 26. Bxd7 dxc3 $19) (25. Nxb5 Bxb5 26. Bxb5 cxd4 $17) 25... cxd4 {[%emt 0:08:14]} 26. exd4 {[%emt 0:05:46] g5 is the strong threat.} (26. Nxb5 Bxb5 27. Bxb5 Rxe3 28. Rxe3 (28. g5 $2 hxg5 29. hxg5 Ne4 $17) 28... dxe3 $17) (26. Ncxd5 Nxd5 27. Nxd5 (27. Qxd5 Ra6 $14) 27... Re5) 26... Qb6 {[%emt 0:06:12]} (26... b4 $16) 27. g5 $36 {[%emt 0:00:19][%mdl 2048] White is in control.} (27. Ncxd5 Qxd4+ 28. Qf2 Qxf2+ 29. Rxf2 Re1+ 30. Rf1 Rxf1+ 31. Bxf1 Nxg4 $15) 27... Qxd4+ {[%emt 0:01:15]} 28. Kh2 {[%emt 0:05:49]} Ne4 $2 {[%emt 0:00:06]} (28... hxg5 $2 29. hxg5 (29. Ncxd5 $2 Nxd5 30. Qxd5 Qxb2+ 31. Kg1 gxf4 $17) 29... Re3 30. Rxe3 Qxe3 31. gxf6 Nxf6 32. Ncxd5 (32. Bxb5 Bxb5 33. Nxb5 Rb8 $16) 32... Nxd5 33. f6 Nxf6 34. Qxa8+ $18) (28... Kh8 29. gxf6 Nxf6) 29. Nfxd5 {[%emt 0:00:18] White is clearly winning.} ({Less strong is} 29. Ncxd5 Ree8 $18) 29... Ree8 {[%emt 0:05:48]} 30. Bxe4 {[%emt 0:00:46][%cal Bd3e4,Be4a8,Ba8d5][%mdl 32]} b4 {[%emt 0:00:06]} 31. Nf6+ {[%emt 0:01:17]} Nxf6 {[%emt 0:00:19]} 32. gxf6 {[%emt 0:00:04]} ({Not} 32. Bxa8 Ng4+ 33. Kh1 bxc3 34. bxc3 Qa4 $16) 32... Qxf6 {[%emt 0:00:07][%cal Ob4c3]} 33. Bxa8 {[%emt 0:00:08]} bxc3 {[%emt 0:00:06]} 34. bxc3 {[%emt 0:01:09][%cal Bb2c3,Bc3c4][%mdl 32]} ({Don't play} 34. Rxc3 Qxh4+ 35. Rh3 Qf6 $18) 34... Bb5 {[%emt 0:02:46]} (34... Bxf5 $142 35. Rg3 Qxh4+ 36. Kg1 Qf6) 35. Rf2 {[%emt 0:01:01]} Qd6+ {[%emt 0:00:51]} 36. Rg3 {[%emt 0:00:21]} Kh8 {[%emt 0:00:15] [#]} 37. f6 $1 {[%emt 0:01:25]} g6 {[%emt 0:00:51]} 38. Bd5 {[%emt 0:01:10]} Re1 {[%emt 0:01:08]} 39. c4 {[%emt 0:00:27] Weighted Error Value: White=0.23 (precise) /Black=0.39} 1-0

[Event "Czech Championship U20 Open 2023"]
[Site "Jaromerice nad Rokytnou"]
[Date "2023.03.18"]
[Round "11.5"]
[White "Smolik, Jachym"]
[Black "Mach, Petr"]
[Result "1-0"]
[ECO "B06"]
[WhiteElo "2297"]
[BlackElo "2167"]
[Annotator "TA"]
[PlyCount "61"]
[EventDate "2023.03.10"]
[EventType "tourn"]
[EventCountry "CZE"]
[SourceTitle "playchess.com"]
[Source "ChessBase"]
[SourceQuality "1"]
[TimeControl "40/5400+30:1800+30"]

{[%evp 9,60,56,91,91,99,89,153,137,157,127,193,185,261,204,197,208,191,197,303,279,575,272,337,332,332,329,332,333,509,495,496,500,505,509,506,489,481,289,287,299,290,283,283,286,581,574,539,322,347,325,1612,1499,29999]} 1. d4 {[%emt 0:00:03]} g6 {[%emt 0:00:06]} 2. e4 {[%emt 0:00:07]} Bg7 {[%emt 0:00:04]} 3. c4 {[%emt 0:00:12]} c5 {[%emt 0:03:03]} 4. d5 {[%emt 0:00:17]} d6 {[%emt 0:00:08]} 5. Nc3 {[%emt 0:01:38]} f5 {[%emt 0:03:18]} 6. exf5 {[%emt 0:05:06] A43: Schmid Benoni.} Bxf5 {[%emt 0:02:25]} 7. Bd3 {[%emt 0:01:19]} e6 {[%emt 0:00:58] [#]} (7... Bxc3+ $142 8. bxc3 Qa5 9. Bxf5 Qxc3+ 10. Bd2 Qe5+ 11. Ne2 Qxf5) 8. Nge2 $146 {[%emt 0:23:27] White is clearly better.} ({Predecessor:} 8. Bxf5 exf5 9. Nge2 Na6 10. O-O Nc7 11. Re1 Kf7 12. Nf4 Be5 13. Nd3 Bxc3 14. bxc3 {1-0 Moreira,B-Gadia,O BRA-ch Campinas 1962 (9)}) 8... Bxd3 {[%emt 0:03:40]} 9. Qxd3 {[%emt 0:00:06] Threatens to win with Nf4.} e5 {[%emt 0:00:10] Against Nf4} (9... exd5 $16 10. cxd5 (10. Nxd5 Nf6 $14) 10... Nd7) 10. Ne4 {[%emt 0:06:42]} h6 {[%emt 0:00:44]} (10... Nf6 $142 11. Bg5 O-O) 11. Qg3 {[%emt 0:14:56]} Ne7 {[%emt 0:03:01]} 12. O-O {[%emt 0:01:28]} O-O {[%emt 0:02:51]} 13. Bd2 {[%emt 0:04:17]} Kh7 {[%emt 0:00:16]} (13... b5 $142 14. cxb5 Nd7 15. Nxd6 Nb6) 14. Qh3 $18 {[%emt 0:00:27][%cal Od2h6] Bxh6! is the strong threat.} Kg8 $2 {[%emt 0:00:33]} (14... Nf5 15. Ng5+ Kg8) 15. Bxh6 {[%emt 0:00:38]} (15. Qe6+ $142 Kh7 16. Qh3 (16. Nxd6 Nf5 $18) (16. Qxd6 Qxd6 17. Nxd6 Nd7 $18)) 15... Nf5 {[%emt 0:00:28]} 16. Bxg7 {[%emt 0:00:32]} Kxg7 {[%emt 0:00:07]} 17. N2g3 {[%emt 0:02:12][%cal Be2g3,Bg3f5,Bf5e3,Be3d5][%mdl 32]} Nd4 {[%emt 0:00:29] [#]} 18. Qg4 {[%emt 0:01:05] f4 would be deadly.} Rh8 {[%emt 0:00:31]} (18... Nd7 {might work better.} 19. Rad1 Qe7) 19. Ng5 {[%emt 0:00:38] And now f4 would win.} Nd7 {[%emt 0:00:15]} 20. Ne6+ {[%emt 0:02:49]} Nxe6 {[%emt 0:00:16]} 21. dxe6 {[%emt 0:00:41]} ({Not} 21. Qxe6 Nf6 $14) 21... Nf6 {[%emt 0:00:07]} 22. Nf5+ {[%emt 0:10:50]} Kh7 {[%emt 0:00:09]} 23. Qh4+ {[%emt 0:00:11]} Nh5 {[%emt 0:00:41]} 24. e7 {[%emt 0:04:23]} Qd7 {[%emt 0:01:33] [#]} 25. Ne3 {[%emt 0:00:29] Black must now prevent f4.} Kg7 {[%emt 0:01:18]} 26. Nd5 {[%emt 0:00:48] Against Nf4. aiming for f4.} Qf5 {[%emt 0:02:01]} (26... Qe6 27. Nc7 Qf6 28. Qxf6+ Kxf6 29. Nxa8 Rxa8) 27. g4 {[%emt 0:06:54]} Qe4 {[%emt 0:01:21]} 28. Qg5 {[%emt 0:00:12]} Nf4 {[%emt 0:00:47][%cal Rf4h3]} 29. Qf6+ {[%emt 0:03:27]} Kg8 $2 {[%emt 0:00:26]} (29... Kh7 30. Nxf4 (30. Qxd6 $2 Nh3#) 30... Qxf4) 30. Nxf4 {[%emt 0:00:17][%mdl 64] Threatening mate with Rae1. Remove Defender, Deflection} (30. Qxd6 $2 Nh3#) 30... Qxf4 {[%emt 0:00:16]} 31. Qxg6# {Black did not feel at home in the position after the opening. A cool game by Smolik.   Weighted Error Value: White=0.45/Black=0.75} 1-0

[Event "Czech Championship U20 Open 2023"]
[Site "Jaromerice nad Rokytnou"]
[Date "2023.03.18"]
[Round "11.6"]
[White "Svanda, Ondrej"]
[Black "Jares, Michal"]
[Result "0-1"]
[ECO "B22"]
[WhiteElo "2366"]
[BlackElo "2177"]
[Annotator "TA"]
[PlyCount "72"]
[EventDate "2023.03.10"]
[EventType "tourn"]
[EventCountry "CZE"]
[SourceTitle "playchess.com"]
[Source "ChessBase"]
[SourceQuality "1"]
[TimeControl "40/5400+30:1800+30"]

{[%evp 14,72,20,27,28,26,28,16,15,20,22,31,43,53,38,8,8,8,12,22,42,0,0,0,0,0,0,-4,-2,-29,-25,-27,-25,-52,-41,-39,-22,-122,-119,-157,-123,-132,-105,-105,-105,-108,-117,-268,-278,-273,-277,-276,-264,-441,-271,-389,-199,-212,-215,-217,-205]} 1. e4 {[%emt 0:00:01]} c5 {[%emt 0:00:01]} 2. c3 {[%emt 0:00:04]} d5 {[%emt 0:00:08]} 3. exd5 {[%emt 0:00:01]} Qxd5 {[%emt 0:00:10]} 4. d4 {[%emt 0:00:00]} cxd4 {[%emt 0:00:12]} 5. cxd4 {[%emt 0:00:01]} e5 {[%emt 0:00:19]} 6. Nf3 {[%emt 0:00:01]} exd4 {[%emt 0:00:11] 6...exd4 is better than 6...Nc6.} 7. Qxd4 {[%emt 0:00:01]} Qxd4 {[%emt 0:00:11]} 8. Nxd4 {[%emt 0:00:04]} Bc5 {[%emt 0:00:15] B22: Sicilian: 2 c3.} 9. Nb5 {[%emt 0:00:01]} Na6 {[%emt 0:00:08] Wards off Nc7+} 10. a3 {[%emt 0:00:49]} Nf6 {[%emt 0:01:21] The position is equal.} 11. N1c3 {[%emt 0:00:02]} O-O {[%emt 0:01:19]} 12. Be2 {[%emt 0:00:01] [#]} Rd8 $146 {[%emt 0:08:32]} ({Predecessor:} 12... Bf5 13. b4 Bb6 14. Bf4 Bg6 15. O-O Rac8 16. Rac1 Rfd8 17. Na4 Nd5 18. Bg3 h6 19. Rxc8 Rxc8 {1-0 Zednicek,F (1548)-Jares,M (1967) CZE-ch Betsys Online Blitz 2021 (9)}) 13. O-O {[%emt 0:02:20]} Bd7 {[%emt 0:03:28]} 14. Bf3 {[%emt 0:00:09]} Bc6 {[%emt 0:02:00]} 15. Bg5 {[%emt 0:08:00]} Bxf3 {[%emt 0:01:08]} 16. gxf3 {[%emt 0:00:00]} Rd3 {[%emt 0:04:25]} 17. Kg2 {[%emt 0:01:21]} Bb6 {[%emt 0:13:01]} 18. Rad1 {[%emt 0:10:13]} Rad8 {[%emt 0:08:13]} 19. Rxd3 {[%emt 0:01:25]} Rxd3 {[%emt 0:00:02]} 20. Re1 {[%emt 0:00:01]} Nc5 {[%emt 0:11:45] [#] Hoping for ...a6.} 21. Be3 {[%emt 0:00:06]} a6 {[%emt 0:04:08]} 22. Nd4 {[%emt 0:00:01]} Ncd7 {[%emt 0:02:08]} 23. Nf5 {[%emt 0:02:52]} g6 $36 {[%emt 0:02:42][%mdl 2048] Black has good play.} 24. Ng3 {[%emt 0:03:58]} Bxe3 {[%emt 0:01:00]} 25. fxe3 {[%emt 0:02:10]} (25. Rxe3 $11 Rd2 26. b4) 25... Ne5 $17 {[%emt 0:01:14]} 26. Na4 {[%emt 0:10:34]} Nd5 {[%emt 0:10:50]} 27. Nf1 {[%emt 0:02:28] Nc5 would be deadly.} Rb3 {[%emt 0:01:12] And now ...Nd3 would win.} 28. Re2 {[%emt 0:02:11]} b6 {[%emt 0:10:14][%cal Bb7b6,Bb6b5,Bb5a4,Ba4b3][%mdl 32] Against Nc5. Black is much more active.} 29. Kf2 {[%emt 0:03:27]} Nd3+ {[%emt 0:11:13]} 30. Kg2 $2 {[%emt 0:00:01] This move loses the game for White.} (30. Kg3 $17 {was worth a try.}) 30... b5 $19 {[%emt 0:02:03]} 31. Nd2 {[%emt 0:00:00]} bxa4 {[%emt 0:00:47]} 32. Nxb3 {[%emt 0:00:01]} axb3 {[%emt 0:00:02]} 33. Kf1 $2 {[%emt 0:00:37]} (33. Rd2 {is the only way for White.} Nxe3+ 34. Kg1) 33... Nc5 {[%emt 0:01:35]} 34. Ke1 {[%emt 0:00:41] [#]} (34. Kg1 {was necessary.}) 34... Nc3 {[%emt 0:01:00]} 35. Rd2 {[%emt 0:00:18]} ({But not} 35. bxc3 b2 36. Rxb2 Nd3+ 37. Kd2 Nxb2 $19) 35... N3a4 {[%emt 0:00:29][%cal Oa4b2] White must now prevent ...Nxb2!} 36. Kd1 {[%emt 0:00:03]} Kf8 {[%emt 0:00:26] Weighted Error Value: White=0.27 (precise) /Black=0.19 (very precise)} 0-1